Cogmind - Beta 13 @@@ ROGUE MODE // 2024.04.09 @ 21:39:15 Player: Olafz Result: Destroyed by G-34 Mercenary with Small Laser Performance ------------- Evolutions (0) 0 Regions Visited (1) 200 Robots Destroyed (14) 70 Value Destroyed (382) 382 Prototype IDs (0) 0 Alien Tech Used (0) 0 Bonus (0) 0 TOTAL SCORE: 652 Bonus ------- None Cogmind --------- Core Integrity 0/250 Matter 300/300 Energy 169/250 System Corruption 0% Temperature Cool (12) Movement Walking (120) Location -10/Materials Parts ------- > --- POWER (1) -------- Ion Engine > --- PROPULSION (2) --- Aluminum Leg > --- UTILITY (2) ------ Small Storage Unit > --- WEAPON (2) ------- (None) > --- INVENTORY (8) ---- Light Ion Engine Light Treads Light Treads Aluminum Leg Compact Wheel Compact Wheel Heat Sink Peak State ------------ > --- POWER ------------ Ion Engine > --- PROPULSION ------- Aluminum Leg Aluminum Leg > --- UTILITY ---------- Heat Sink Small Storage Unit > --- WEAPON ----------- Small Laser Light Assault Rifle > --- INVENTORY -------- Ion Engine Light Ion Engine Light Treads Light Treads Compact Wheel Compact Wheel Heat Sink Medium Laser [Rating: 7] Favorites ----------- Power Ion Engine Engine Ion Engine Propulsion Aluminum Leg Leg Aluminum Leg Utility Small Storage Unit Device Heat Sink Storage Small Storage Unit Weapon Small Laser Energy Gun Small Laser Ballistic Gun Light Assault Rifle Build | -11 -10 ------- Run | Yrd Mat Slots Evolved . | . . Power . | . . Propulsion . | . . Utility . | . . Weapon . | . . Parts Attached 10 | . 10 Power 4 | . 4 Engine 4 | . 4 Core . | . . Reactor . | . . Propulsion 3 | . 3 Treads . | . . Leg 3 | . 3 Wheel . | . . Hover . | . . Flight . | . . Utility 1 | . 1 Device 1 | . 1 Storage . | . . Processor . | . . Hackware . | . . Protection . | . . Artifact . | . . Weapon 2 | . 2 Energy Gun 2 | . 2 Energy Cannon . | . . Ballistic Gun . | . . Ballistic Cannon . | . . Launcher . | . . Special Weapon . | . . Impact Weapon . | . . Slashing Weapon . | . . Piercing Weapon . | . . Special Melee Weapon . | . . Unidentified Prototypes . | . . Parts Lost 9 | . 9 Power 2 | . 2 Propulsion 3 | . 3 Utility 1 | . 1 Weapon 3 | . 3 Highest Loss Streak 5 | . 5 To Critical Strikes . | . . Average Slot Usage (%) 84 | . 84 Engine 13 | . 13 Leg 24 | . 24 Device 6 | . 6 Storage 14 | . 14 Energy Gun 14 | . 14 Ballistic Gun 10 | . 10 Naked Turns . | . . Heaviest Build 14 | 12 14 Greatest Support 20 | 20 20 Greatest Overweight (x) 2 | . 2 Average Overweight (x) . | . . Largest Inventory Capacity 8 | . 8 Average Capacity 8 | . 8 Most Carried 8 | . 8 Average Carried 7 | . 7 Final Capacity 8 | 8 8 Final Carried 7 | 6 7 Class Distribution -------------------- 50% | Mutant 50% | Scavenger-Mutant Dominant Class ---------------- Scavenger-Mutant | -10/Materials Resources | -11 -10 ----------- Run | Yrd Mat Matter Collected 311 | 200 111 Remotely . | . . Salvage Created 510 | . 510 Parts 23 | . 23 Haulers Intercepted . | . . Recyclers Shooed . | . . Parts Field Recycled . | . . Retrieved Matter . | . . Parts Self-Destructed . | . . Prevented . | . . Kills | -11 -10 ------- Run | Yrd Mat Combat Hostiles Destroyed 12 | . 12 Guns 12 | . 12 Classes Destroyed 4 | . 4 Recycler 1 | . 1 Watcher 1 | . 1 Swarmer 2 | . 2 Grunt 10 | . 10 Best Kill Streak 6 | . 6 Combat Bots Only 6 | . 6 Max Kills in Single Turn 1 | . 1 Gunslinging . | . . Exploded . | . . Melee . | . . Uniques/NPCs Destroyed . | . . Combat | -11 -10 -------- Run | Yrd Mat Hostile Shots Fired 140 | . 140 Missed 26 | . 26 Damage Taken 1213 | . 1213 Core 253 | . 253 Absorbed by Shields . | . . Core Remaining (%) 100 | 100 . Volleys Fired 59 | . 59 Largest 2 | . 2 Hottest 90 | . 90 Shots Fired 104 | . 104 Gun 104 | . 104 Cannon . | . . Launcher . | . . Special . | . . Kinetic 38 | . 38 Thermal 66 | . 66 Explosive . | . . Electromagnetic . | . . Robot Hit Streak 12 | . 12 Robot Miss Streak 3 | . 3 Penetration Max . | . . Secondary Targets 4 | . 4 Max Gunslinging Chain 1 | . 1 Shots Hit Robots 71 | . 71 Core Hits 26 | . 26 Critical Kills . | . . Critical Parts Destroyed . | . . Critical Strikes 2 | . 2 Burn 2 | . 2 Melee Attacks . | . . Impact . | . . Slashing . | . . Piercing . | . . Sneak Attacks . | . . Combat Hostiles . | . . Follow-up Attacks . | . . Damage Inflicted 778 | . 778 Guns 770 | . 770 Cannons . | . . Explosions . | . . Melee . | . . Ramming 8 | . 8 Kinetic 236 | . 236 Thermal 534 | . 534 Explosive . | . . Electromagnetic . | . . Impact . | . . Slashing . | . . Piercing . | . . Highest Corruption . | . . Average Corruption . | . . Corruption Purged . | . . Corruption Blocked . | . . Overload Shots . | . . Overflow Damage . | . . Projectiles . | . . Explosions . | . . Melee . | . . Knockbacks . | . . Impact . | . . Kinetic . | . . Secondary . | . . Self-Inflicted Damage . | . . Shots . | . . Rammed . | . . Targets Rammed 6 | . 6 Kicked 6 | . 6 Crushed . | . . Highest Temperature 250 | . 250 Average Temperature 85 | . 85 Received Heat Transfer 579 | . 579 Effects 1 | . 1 Energy Bleed 1 | . 1 Siege Activations . | . . Robots Corrupted . | . . Combat Hostiles . | . . Parts Fried . | . . Impact Corruptions . | . . Robots Melted . | . . Combat Hostiles . | . . Parts Melted 5 | . 5 Heat Transferred 1491 | . 1491 Parts Sabotaged . | . . Parts Stolen . | . . Parts Stripped . | . . Power Chain Reactions . | . . Alert | -11 -10 ------- Run | Yrd Mat Peak Influence 196 | . 196 Initial . | . . Average 94 | . 94 Maximum Alert Level . | . . Low Security (%) 100 | . 100 Level 1 . | . . Level 2 . | . . Level 3 . | . . Level 4 . | . . Level 5 . | . . High Security . | . . Max Security . | . . Squads Dispatched 5 | . 5 Investigation 2 | . 2 Extermination . | . . Reinforcement 3 | . 3 Assault . | . . Garrison . | . . Intercept . | . . Searches Triggered . | . . Construction Impeded . | . . Haulers Reinforced . | . . Active Scanning Responses . | . . Cargo Convoy Interrupts . | . . Stealth | -11 -10 --------- Run | Yrd Mat Distress Signals 3 | . 3 Communications Jammed . | . . Distress Signals . | . . Times Spotted 25 | . 25 Peak Tracking Total 7 | . 7 Tactical Retreats 3 | . 3 Traps | -11 -10 ------- Run | Yrd Mat Traps Triggered . | . . Indirectly . | . . Trap Hack Attempts . | . . Triggered . | . . Disarmed . | . . Reprogrammed . | . . Reused . | . . Traps Extracted . | . . Installed . | . . Triggered . | . . Machines | -11 -10 ---------- Run | Yrd Mat Machines Disabled . | . . Max in Single Turn . | . . Machines Repaired . | . . Machines Dismantled . | . . Machines Sabotaged . | . . Overloaded Fab Kills . | . . Hacking | -11 -10 --------- Run | Yrd Mat Machines Accessed 3 | . 3 Terminals 3 | . 3 Fabricators . | . . Repair Stations . | . . Recycling Units . | . . Scanalyzers . | . . Garrison Access . | . . Total Hacks 15 | . 15 Successful 9 | . 9 Failed 6 | . 6 Catastrophic . | . . Database Lockouts . | . . Manual 14 | . 14 Terminals 15 | . 15 Fabricators . | . . Repair Stations . | . . Recycling Units . | . . Scanalyzers . | . . Garrison Access . | . . Terminal Hacks 4 | . 4 Record 1 | . 1 Terminal Index 1 | . 1 Alert Level 1 | . 1 Unreport Threat 1 | . 1 Fabricator Hacks . | . . Repair Station Hacks . | . . Recycling Unit Hacks . | . . Scanalyzer . | . . Garrison Access Hacks . | . . Unauthorized Hacks 4 | . 4 Terminals 4 | . 4 Botnet 3 | . 3 Operators 1 | . 1 Fabricators . | . . Repair Stations . | . . Recycling Units . | . . Scanalyzers . | . . Garrison Access . | . . Data Cores Recovered . | . . Used . | . . Hacking Detections 3 | . 3 Full Trace Events 2 | . 2 Feedback Events . | . . Feedback Blocked . | . . Robot Schematics Acquired . | . . Robots Built . | . . Authchips . | . . Time . | . . Total Robot Build Rating . | . . Part Schematics Acquired . | . . Parts Built . | . . Authchips . | . . Time . | . . Total Part Build Rating . | . . Parts Repaired . | . . Time . | . . Parts Recycled . | . . Recycled Matter . | . . Retrieved Matter . | . . Retrieved Components . | . . Parts Scanalyzed . | . . Part Schematics Acquired . | . . Parts Damaged . | . . Bothacking | -11 -10 ------------ Run | Yrd Mat Used RIF Installer . | . . Robots Hacked . | . . Non-combat . | . . Combat . | . . Robot Hacks Applied . | . . Relay Couplers Released . | . . Fabnet Peak Effective % . | . . Robots Rewired . | . . Allies Hacked . | . . Hacks Repelled . | . . Allies | -11 -10 -------- Run | Yrd Mat Total Allies . | . . Largest Group . | . . Highest-Rated Group . | . . Highest-Rated Ally . | . . Total Orders . | . . Ally Attacks . | . . Total Damage . | . . Kills . | . . Allies Corrupted . | . . Allies Melted . | . . Intel | -11 -10 ------- Run | Yrd Mat Robot Analysis Total . | . . Derelict Logs Recovered . | . . Drone Launches . | . . Drone Recoveries . | . . Exploration | -11 -10 ------------- Run | Yrd Mat Turns Passed 348 | . 348 Spaces Moved 134 | 1 133 Core 3 | . 3 Treads . | . . Legs 131 | 1 130 Wheels . | . . Hover . | . . Flight . | . . Fastest Speed 120 | 120 120 Average Speed 122 | 120 122 Slowest Speed 190 | 120 190 Overloaded Moves . | . . Propulsion Burnouts . | . . Robots Hopped . | . . Cave-ins Triggered . | . . Exploration Rate (%) 15 | 2 28 Regions Visited 1 Branch Regions . Pre-discovered Areas . | . . Known Exits Taken . | . . Unknown Exits Taken 1 | 1 . Scrap Searched . | . . Spaces Dug . | . . Terrain Destroyed . | . . Melee . | . . Projectile . | . . AOE . | . . Terrain Rammed . | . . Walls Destroyed . | . . Machines Disabled . | . . Actions | -11 -10 --------- Run | Yrd Mat Total 218 | . 218 Wait 7 | . 7 Move 133 | . 133 Hop . | . . Pick Up 1 | . 1 Fast Attach 5 | . 5 Attach 2 | . 2 Detach . | . . Swap 3 | . 3 Drop 2 | . 2 Fire 59 | . 59 Melee . | . . Ram . | . . Kick 6 | . 6 Crush . | . . Escape Stasis . | . . Rewire . | . . Trap . | . . Miscellaneous . | . . Route ------- -11/Scrapyard -10/Materials History --------- Turn | Location | Event 1 | -11/Scrapyard | Discovered new exit (range 0) 1 | -11/Scrapyard | Entered Materials 173 | -10/Materials | Core integrity fell below 50% 193 | -10/Materials | Lost 3 parts (1p2n) 328 | -10/Materials | Core integrity fell below 20% 349 | -10/Materials | Destroyed by G-34 Mercenary with Small Laser Last Messages --------------- K-01 Serf collects debris. S-10 Pest destroyed. K-01 Serf collects debris. T-07 Excavator is excavating. W-16 Scout sends out distress signal. T-07 Excavator is excavating. K-01 Serf destroyed. Lgt. Ion Engine destroyed. S-10 Pest destroyed. Med. Laser destroyed. K-01 Serf collects debris. Kicked G-34 Mercenary. Kicked G-34 Mercenary out of the way. Heat Sink destroyed. U-05 Engineer lays Concrete. Aluminum Leg destroyed. Kicked G-34 Mercenary. K-01 Serf collects debris. Kicked G-34 Mercenary. Kicked G-34 Mercenary out of the way. Map ----- +----------------------------------------------------+ | ?????????????????????????????????????????????????? | | ?????????????????????????????????????????????????? | | ?????????????????????????????????????????????????? | | ?????????????????????????????????????????????????? | | ?????????????????????????????????????????????????? | | ?????????????????????????????????????????????????? | | ?????????????????????????????????????????????????? | | ?????????????????????????????????????????????????? | | ?????????????????????????????????????????????????? | | ?????????????????????????????????????????????????? | | ?????????????????????????????????????????????????? | | ?????????????????????????????????????????????????? | | ?????????????????????????????????????????????????? | | ?????????????????????????????????????????????????? | | ????????????????????????????? #????????????????? | | ????????????????????????????# +????????????????? | | ????????????????????????????# #????????????????? | | ????????????????????????????# #????????????????? | | ????????????????????????????# #????????????????? | | ????????????????????######### #####????????????? | | ????????????????????# """ ## ?????????????? | | ????????????????????# """ ## ??????????????? | | ????????????????????# """ ## ???????????????? | | ????????????????????# ## #?????#####+###### | | ????????????????????# %% g## #?????? | | ????????????????????# gs@ ## ##???? """ """ | | ????????????????????####g### #????? """ """ | | ?????????????????#### g #???????"" """ | | ????????????? =% #????????? ?? | | ???????????# * %*############+#### | | ???????????# #### !=%%[== % | | ???????????########## o???################# | | ????????????????????# ???????????????????# % | | ???????????????????# ???????????????????##%#### | | ???????????????????u# ???????????????????##+#### | | ???????????????????## ???????????????????# ! | | ????????????????????# ???????????????????# % | | ???????????????????? ???????????????????# | | ???????????????????? ????????????????????# "T" | | ???????????????????? T????????????????????####### | | ???????????????????? ?????????????????????????# | | ????????????????????????????????????????????????# | | ????????????????????????????????????????????????# | | ????????????????????????????????????????????????# | | ????????????????????????????????????????????????# | | ????????????????????????????????????????? | | ???????????????????????????????????????? | | ?????????????????????????????????????????? | | ???????????????????????????????????????????###+### | | ?????????????????????????????????????????????????? | +----------------------------------------------------+ Best States ------------- Heat Dissipation 35 Energy Generation 10 Energy Capacity 250 Matter Stores 300 Matter Capacity 300 Sight Range 16 Terrain Scan Density 10 Evasion (%) 55 Item Schematics ----------------- None Robot Schematics ------------------ None Fabricated ------------ Nothing Alien Tech Used ----------------- None Achievements -------------- None Challenges ------------ None Game ------ Seed TransmissionHeartShearcannon Manual? 0 Play Time 00:06:15 Cumulative 39.9 hours Start 2024.04.09 @ 21:30:37 End 2024.04.09 @ 21:39:15 Sessions 1 Manual Loads 0 Difficulty Rogue Special Mode None Game No. 108 Rogue 106 Adventurer 2 Explorer 0 Win Type - Total 0 Types 0/0/0/0/0/0/0/0/0 Lore% 28 Gallery% 35 Achievement% 26 Wizard Run 0 Options --------- Layout 2 ASCII 0 Keyboard 1 Movement Numpad Keybinds 1 Fullscreen 2 Font 24/Smallcaps Map View 50x44 Zoom Use 0% Tactical HUD 1 Map Filters NONE Filters NONE Steam 1 RUN: b240eb0c-b9b7-4f5b-a0a2-3deb5fae5f02